bitfinex-derivatives/quotes_ETHF0:USTF0_20250212
["timestamp","ask_amount","ask_price","bid_price","bid_amount"]
[1739333634722,0.613,2593.0,2592.5,0.00578447]
[1739333636620,1.38451,2593.0,2592.5,0.00578447]
[1739333636823,0.5983,2592.9,2592.5,0.00578447]
[1739333637020,6.39747999,2592.8,2592.5,0.00578447]
[1739333637224,6.98047999,2592.8,2592.5,0.00578447]
[1739333637422,0.0654509,2592.7,2592.5,0.00578447]
[1739333638021,0.0654509,2592.7,2591.8,1.1849]
[1739333638235,3.2078,2592.3,2591.8,1.1849]
[1739333638425,0.583,2592.2,2591.8,1.1849]
[1739333639428,0.583,2592.2,2591.7,44.01358447]
[1739333639719,3.2078,2592.0,2591.7,0.00578447]
[1739333641327,0.567,2591.9,2591.7,0.00578447]
[1739333641924,0.583,2592.2,2591.8,3.18967999]
[1739333642129,0.583,2592.2,2591.9,40.8]
[1739333643826,3.79028447,2592.3,2591.9,40.8]
[1739333644128,0.58248447,2592.3,2592.1,3.18967999]
[1739333644325,0.00578447,2592.3,2592.2,3.2078]
[1739333646030,1.762,2593.1,2592.2,9.2078]
[1739333646230,1.762,2593.1,2592.6,3.18967999]
[1739333646931,1.762,2593.1,2592.7,0.5916]
[1739333647132,1.76778447,2593.1,2592.7,0.5916]
[1739333648035,0.5979,2593.0,2592.7,0.5916]
[1739333648335,0.5979,2593.0,2592.5,3.2078]
[1739333648529,3.2078,2592.9,2592.3,3.18967999]
[1739333650232,3.2078,2592.9,2592.6,3.18967999]
[1739333650433,0.5979,2593.0,2592.7,0.5978]
[1739333652232,0.00578447,2593.1,2592.9,3.18967999]
[1739333656339,0.6084,2593.8,2592.9,9.18967999]
[1739333656538,0.6084,2593.8,2593.4,3.2078]
[1739333657134,0.6084,2593.8,2593.4,4.3376]
[1739333659549,0.6084,2593.8,2593.4,4.9197]
[1739333660841,0.6084,2593.8,2593.4,1.7119]
[1739333661747,0.6084,2593.8,2593.4,4.9197]
[1739333662151,0.00578447,2593.9,2593.4,4.9197]
[1739333662854,0.00578447,2593.9,2593.4,1.7119]
[1739333663056,0.00578447,2593.9,2593.3,0.00578447]
[1739333663345,3.2078,2593.8,2593.3,0.00578447]
[1739333663550,0.6034,2593.7,2593.3,0.00578447]
[1739333663954,0.5761,2593.6,2593.3,0.00578447]
[1739333665349,0.00578447,2593.9,2593.5,3.18967999]
[1739333665552,0.00578447,2593.9,2593.8,6.39747999]
[1739333665947,0.00578447,2593.9,2593.8,3.2078]
[1739333667956,0.00578447,2593.9,2593.8,6.39747999]
[1739333669059,0.00578447,2593.9,2593.8,3.2078]
[1739333669856,0.00578447,2593.9,2593.6,1.1818]
[1739333670750,0.00578447,2593.9,2593.7,40.8]
[1739333670945,0.00578447,2593.9,2593.8,3.2078]
[1739333679170,0.00578447,2593.9,2593.8,6.39747999]
[1739333679870,0.00578447,2593.9,2593.8,47.19747999]
[1739333680763,1.1677,2594.6,2593.8,47.19747999]
[1739333680960,1.1677,2594.6,2594.5,3.18967999]
[1739333680961,0.5921,2594.6,2594.5,3.18967999]
[1739333681171,0.5921,2594.6,2594.2,6.39747999]
[1739333683874,0.5921,2594.6,2594.5,3.2078]
[1739333685272,0.00578447,2594.7,2594.5,3.2078]
[1739333685466,0.00578447,2594.7,2594.5,6.39747999]
[1739333687369,0.00578447,2594.7,2594.5,3.2078]
[1739333688575,0.00578447,2594.7,2594.5,6.39747999]
[1739333690872,0.00578447,2594.7,2594.5,3.2078]
[1739333696377,0.00578447,2594.7,2593.9,3.18967999]
[1739333696676,0.00578447,2594.7,2593.9,3.78127999]
[1739333697076,0.00578447,2594.7,2594.2,3.18967999]
[1739333697483,0.00578447,2594.7,2594.3,0.5688]
[1739333697878,0.00578447,2594.7,2594.4,3.7942]
[1739333699676,0.00578447,2594.7,2594.5,3.18967999]
[1739333699873,0.00578447,2594.7,2594.4,3.7942]
[1739333700183,0.00578447,2594.7,2594.5,3.18967999]
[1739333700883,0.00578447,2594.7,2594.4,3.7942]
[1739333701383,0.00578447,2594.7,2594.6,3.18967999]
[1739333702180,0.5948,2595.3,2594.6,9.18967999]
[1739333702384,0.5948,2595.3,2595.0,3.18967999]
[1739333703095,4.9658,2595.7,2595.0,3.74557999]
[1739333703385,0.00578447,2595.4,2595.3,3.18967999]
[1739333703577,0.00578447,2595.4,2595.3,6.39747999]
[1739333703980,0.00578447,2595.4,2595.1,40.8]
[1739333704378,3.21358447,2595.4,2595.1,40.8]
[1739333704577,3.21358447,2595.4,2594.9,0.00578447]
[1739333704578,0.5614,2595.3,2594.9,0.00578447]
[1739333705184,0.5614,2595.2,2594.9,0.00578447]
[1739333705383,0.5973,2595.1,2594.9,0.00578447]
[1739333706180,3.18967999,2595.0,2594.3,40.8]
[1739333706381,6.39747999,2595.0,2594.1,3.2078]
[1739333707585,6.39747999,2595.0,2594.3,0.00578447]
[1739333708193,3.2078,2594.7,2594.3,0.00578447]
[1739333708389,1.1682,2594.6,2594.3,0.00578447]
[1739333709385,0.5836,2594.5,2594.3,0.00578447]
[1739333710588,3.2078,2595.0,2594.4,3.2078]
[1739333710788,1.1419,2594.9,2594.5,4.38767999]
[1739333710987,1.1419,2594.9,2594.8,3.18967999]
[1739333711295,3.2078,2595.0,2594.8,3.18967999]
[1739333711991,2.8999,2595.2,2594.8,3.18967999]
[1739333712387,1.1419,2595.2,2594.8,3.18967999]
[1739333713095,3.21358447,2595.4,2595.1,3.18967999]
[1739333713688,0.00578447,2595.4,2595.1,6.39747999]
[1739333716994,0.00578447,2595.4,2595.2,40.8]
[1739333722399,0.00578447,2595.4,2595.2,41.10948786]
[1739333725393,0.00578447,2595.4,2595.3,3.2078]
[1739333726296,0.00578447,2595.4,2595.3,44.0078]
[1739333726804,1.1895,2596.0,2595.3,44.0078]
[1739333727104,0.5539,2596.4,2595.9,3.2078]
[1739333727305,1.1084,2596.3,2596.1,3.18967999]
[1739333729508,1.1084,2596.3,2595.9,3.21358447]
[1739333730102,1.1084,2596.3,2596.2,3.2078]
[1739333733211,0.00578447,2596.5,2596.2,3.2078]
[1739333733511,0.5948,2596.9,2596.4,3.18967999]
[1739333733699,0.5779,2597.4,2596.9,3.18967999]
[1739333733900,0.6044,2597.3,2597.2,3.18967999]
[1739333735098,0.6044,2597.3,2597.1,3.2078]
[1739333735705,0.6044,2597.3,2597.0,43.99546446]
[1739333735706,0.6044,2597.3,2597.0,3.19546446]
[1739333736012,0.6044,2597.3,2597.0,0.00578447]
[1739333736206,0.5779,2597.2,2597.0,0.00578447]
[1739333736510,3.2078,2597.1,2596.2,6.39747999]
[1739333736711,3.2078,2596.8,2596.2,6.39747999]
[1739333737007,0.6054,2596.7,2596.2,6.39747999]
[1739333737711,0.61118447,2596.7,2596.2,6.40326446]
[1739333738011,0.00578447,2596.7,2596.5,6.39747999]
[1739333739914,0.00578447,2596.7,2596.6,1.1919]
[1739333741800,0.5754,2597.7,2596.6,1.1919]
[1739333742103,1.1669,2597.6,2597.4,3.2078]
[1739333742508,1.1669,2597.6,2596.6,1.1919]
[1739333742509,1.1669,2597.6,2597.1,3.18967999]
[1739333743307,1.1669,2597.6,2596.9,3.2078]
[1739333743501,3.2078,2597.5,2596.9,3.2078]
[1739333743702,6.39747999,2597.5,2596.5,6.39747999]
[1739333743901,1.755,2597.4,2596.5,6.39747999]
[1739333744105,3.2078,2597.2,2596.5,6.39747999]
[1739333744310,0.5613,2597.1,2596.5,6.39747999]
[1739333744513,0.5857,2597.0,2596.5,6.39747999]
[1739333745510,0.5857,2597.0,2596.8,3.18967999]
[1739333746014,0.5857,2597.0,2596.9,3.2078]
[1739333746609,1.755,2597.4,2596.9,3.2078]
[1739333746811,1.1551,2597.6,2597.2,3.18967999]
[1739333749106,1.1551,2597.6,2596.9,8.13727999]
[1739333750810,1.1551,2597.6,2597.2,3.18967999]
[1739333752106,1.1551,2597.6,2596.9,8.13727999]
[1739333752308,1.1551,2597.6,2596.9,6.95187999]
[1739333753215,1.1551,2597.6,2596.9,3.2078]
[1739333753602,1.92525,2597.6,2596.9,3.2078]
[1739333753912,1.1551,2597.6,2596.9,3.2078]
[1739333754715,1.1551,2597.6,2596.5,0.88573651]
[1739333754716,1.1551,2597.6,2597.2,6.39747999]
[1739333754911,1.1551,2597.6,2597.2,3.18967999]
[1739333755210,5.13304,2597.6,2596.9,6.39747999]
[1739333755714,4.3629,2597.6,2596.9,6.39747999]
[1739333757513,6.1169,2597.6,2596.9,6.39747999]
[1739333757806,6.1169,2597.6,2596.9,3.2078]
[1739333757807,3.18967999,2597.5,2596.9,3.2078]
[1739333758011,0.6036,2597.4,2596.9,3.2078]
[1739333758214,0.6036,2597.4,2596.6,6.39747999]
[1739333760418,1.754,2597.5,2596.9,3.18967999]
[1739333760720,6.7205,2597.6,2597.0,1.1928]
[1739333761210,3.2078,2597.3,2597.0,1.1928]
[1739333761411,3.2078,2597.3,2596.4,0.558]
[1739333761412,1.36207,2597.2,2596.4,0.558]
[1739333761613,6.39747999,2597.0,2596.4,0.558]
[1739333761811,8.15147999,2597.0,2596.4,1.1621]
[1739333762008,4.9618,2597.0,2596.4,1.1621]
[1739333762210,0.77035,2596.9,2596.3,0.5744]
[1739333762509,3.2078,2596.6,2596.3,0.5744]
[1739333763420,0.5918,2596.5,2596.3,0.5744]
[1739333763617,0.6009,2597.1,2596.4,3.2078]
[1739333763911,3.2078,2597.3,2596.7,6.39747999]
[1739333764111,3.2078,2597.3,2597.0,3.18967999]
[1739333764813,3.2078,2597.3,2596.8,1.7104]
[1739333765119,1.1839,2597.2,2596.8,1.7104]
[1739333767213,3.7954,2597.7,2597.0,3.18967999]
[1739333767414,1.1963,2597.6,2597.1,3.2078]
[1739333767812,1.1963,2597.6,2597.1,3.21358447]
[1739333772115,0.6095,2597.6,2597.1,3.21358447]
[1739333772420,1.754,2597.8,2597.1,3.21358447]
[1739333772620,0.6006,2597.7,2597.1,3.21358447]
[1739333772822,0.6006,2597.7,2597.2,40.8]
[1739333773025,0.6006,2597.7,2597.3,1.1305]
[1739333774924,0.6006,2597.7,2597.1,3.21358447]
[1739333775119,3.8084,2597.7,2597.1,3.21358447]
[1739333775425,0.06558584,2597.6,2597.1,3.21358447]
[1739333776623,1.81958584,2597.6,2597.1,3.21358447]
[1739333776923,1.754,2597.6,2597.1,3.78598447]
[1739333779224,1.754,2597.6,2597.1,3.21358447]
[1739333780028,1.754,2597.6,2597.1,0.00578447]
[1739333780230,3.2078,2597.4,2597.1,0.00578447]
[1739333780541,0.5983,2597.3,2597.1,0.00578447]
[1739333780729,1.1603,2597.3,2597.1,0.00578447]
[1739333781934,1.7572,2597.3,2597.1,0.00578447]
[1739333782237,1.1603,2597.3,2597.1,0.00578447]
[1739333782934,0.562,2597.3,2597.1,0.00578447]
[1739333783138,3.2078,2597.4,2597.1,0.00578447]
[1739333787542,3.95992999,2597.2,2596.4,1.123]
[1739333787729,3.2078,2596.9,2596.3,0.5894]
[1739333787935,1.1583,2596.8,2596.3,0.5894]
[1739333788643,1.16408447,2596.8,2596.4,0.585]
[1739333791035,1.16408447,2596.8,2596.4,3.77467999]
[1739333791236,1.16408447,2596.8,2596.5,0.5837]
[1739333791538,0.00578447,2596.8,2596.7,3.18967999]
[1739333794245,0.00578447,2596.8,2596.7,6.39747999]
[1739333795545,0.00578447,2596.8,2596.7,3.18967999]
[1739333796347,0.00578447,2596.8,2596.5,0.5837]
[1739333796750,1.19258447,2596.8,2596.5,0.5837]
[1739333797443,0.59008447,2596.8,2596.5,0.5837]
[1739333797647,0.00578447,2596.8,2596.7,3.18967999]
[1739333800755,0.00578447,2596.8,2596.7,6.39747999]
[1739333802153,3.2078,2597.4,2596.7,6.39747999]
[1739333802349,3.2078,2597.4,2597.2,3.18967999]
[1739333802751,3.2078,2597.4,2597.1,1.7583]
[1739333802950,3.2078,2597.4,2597.0,6.39747999]
[1739333803953,1.1522,2597.5,2597.1,1.7393]
[1739333805855,3.2078,2597.4,2597.1,1.7393]
[1739333807465,0.00300717,2597.2,2597.1,1.7393]
[1739333811163,3.2078,2597.8,2597.6,3.18967999]
[1739333811556,3.2078,2597.8,2597.7,1.1994]
[1739333812160,1.21,2598.0,2597.7,1.7616]
[1739333812663,1.21,2598.0,2597.6,6.39747999]
[1739333814865,1.21,2598.0,2597.6,3.18967999]
[1739333816667,0.5714,2597.9,2597.6,3.18967999]
[1739333817668,1.21,2598.0,2597.6,3.18967999]
[1739333818066,1.21,2598.0,2597.7,1.7355]
[1739333819963,3.2078,2598.1,2597.9,3.18967999]
[1739333821568,4.3922,2598.5,2597.9,3.18967999]
[1739333821768,4.3922,2598.5,2598.2,3.18967999]
[1739333822159,1.1844,2598.5,2598.2,3.18967999]
[1739333824469,3.2078,2598.4,2597.9,3.18967999]
[1739333824974,0.6078,2598.3,2597.7,3.21358447]
[1739333825777,0.6078,2598.3,2597.7,3.78178447]
[1739333825971,0.6078,2598.3,2597.7,4.37118447]
[1739333826461,0.6078,2598.3,2597.7,3.21358447]
[1739333831279,0.6078,2598.3,2597.7,0.00578447]
[1739333832677,0.6078,2598.3,2597.9,3.18967999]
[1739333832973,0.6078,2598.3,2598.0,1.7115]
[1739333833289,0.5891,2598.5,2598.2,3.18967999]
[1739333833479,3.2078,2598.7,2598.2,3.18967999]
[1739333833681,0.6044,2598.6,2598.2,3.18967999]
[1739333837680,0.6044,2598.6,2598.3,3.2078]
[1739333837878,0.6044,2598.6,2598.4,0.5689]
[1739333838382,0.6044,2598.6,2598.5,1.1427]
[1739333838982,6.8873,2599.0,2598.5,4.33237999]
[1739333839283,0.559,2599.2,2598.7,3.2078]
[1739333840585,0.559,2599.2,2598.5,4.33237999]
[1739333841582,3.2078,2599.0,2598.5,1.1427]
[1739333841780,0.5794,2598.9,2598.4,0.5689]
[1739333841976,3.2078,2598.7,2598.3,1.1685]
[1739333842282,3.2078,2598.7,2598.3,0.5716]
[1739333842481,3.2078,2598.7,2598.2,3.18967999]
[1739333842682,3.2078,2598.7,2598.1,1.1598]
[1739333843785,3.18967999,2598.5,2598.0,3.2078]
[1739333843981,3.18967999,2598.5,2597.7,0.00578447]
[1739333843982,3.2078,2598.1,2597.7,0.00578447]
[1739333844178,1.1405,2598.0,2597.7,0.00578447]
[1739333844778,3.2078,2597.8,2597.7,0.00578447]
[1739333845182,3.27355652,2597.8,2597.0,43.98967999]
[1739333845380,3.27355652,2597.8,2596.9,3.2078]
[1739333845381,3.2078,2597.4,2596.9,3.2078]
[1739333845585,0.5786,2597.3,2596.9,3.2078]
[1739333845778,1.1878,2597.3,2596.9,3.2078]
[1739333846081,4.37747999,2597.3,2596.9,3.2078]
[1739333846783,6.39747999,2597.0,2596.8,0.00577323]
[1739333846981,1.751,2596.9,2596.8,0.00577323]
[1739333847282,4.836,2596.9,2596.8,0.00577323]
[1739333847980,4.836,2596.9,2596.0,0.6067]
[1739333847981,10.9017798,2596.9,2596.0,0.6067]
[1739333848177,6.39747999,2596.7,2596.0,0.6067]
[1739333848385,0.6092,2596.6,2596.1,40.8]
[1739333848586,1.1689,2596.6,2596.1,40.8]
[1739333848787,3.2078,2596.4,2596.0,0.6067]
[1739333848985,3.2078,2596.4,2595.8,3.18967999]
[1739333849189,3.2078,2596.4,2595.9,40.8]
[1739333849485,3.2078,2596.1,2595.9,40.80577323]
[1739333849887,3.2078,2596.1,2595.9,0.00577323]
[1739333851088,6.39747999,2596.1,2595.9,0.00577323]
[1739333851282,6.39747999,2596.1,2595.1,7.00127999]
[1739333851283,0.5843,2596.0,2595.1,3.18967999]
[1739333851488,3.2078,2595.5,2595.1,3.18967999]
[1739333851786,3.2078,2595.5,2594.9,0.5639]
[1739333852293,3.2078,2595.5,2595.1,3.18967999]
[1739333852490,3.21357323,2595.5,2595.1,3.18967999]
[1739333852688,3.21357323,2595.5,2594.9,0.56967323]
[1739333852884,3.2078,2595.4,2594.9,0.00577323]
[1739333853790,3.2078,2595.1,2594.9,0.00577323]
[1739333854096,1.752,2595.0,2594.2,6.39747999]
[1739333854298,1.752,2595.0,2594.5,3.18967999]
[1739333855192,1.752,2595.0,2594.8,3.18967999]
[1739333855694,1.752,2595.0,2594.5,6.40325322]
[1739333856290,1.752,2595.0,2594.6,40.8]
[1739333857394,3.2078,2594.8,2594.5,0.00577323]
[1739333857795,3.2078,2594.8,2593.9,3.18967999]
[1739333857999,3.2078,2594.4,2593.9,3.18967999]
[1739333858198,1.752,2594.3,2593.8,3.2078]
[1739333858794,2.3293,2594.3,2593.8,3.2078]
[1739333859203,2.3293,2594.3,2593.8,3.21357323]
[1739333859698,1.752,2594.2,2593.8,3.21357323]
[1739333860289,3.2078,2594.1,2593.8,0.00577323]
[1739333865705,6.064,2594.0,2593.8,0.00577323]
[1739333865896,0.77128,2593.8,2593.0,3.2078]
[1739333866098,6.39747999,2593.6,2593.0,3.2078]
[1739333866395,2.3322,2593.5,2593.0,3.2078]
[1739333866801,3.2078,2593.3,2592.7,3.2078]
[1739333867194,3.2078,2593.3,2593.0,0.00387504]
[1739333867992,6.39747999,2593.3,2593.0,0.00387504]
[1739333868203,4.52842158,2593.2,2592.4,0.6033]
[1739333868401,4.52842158,2593.2,2591.9,0.5802]
[1739333868402,6.39747999,2592.6,2591.9,3.2078]
[1739333868596,1.753,2592.5,2592.0,40.8]
[1739333868998,1.753,2592.5,2591.9,3.2078]
[1739333869599,1.753,2592.5,2591.9,44.0078]
[1739333871009,6.39747999,2592.3,2591.6,3.2078]
[1739333871604,7.29914478,2592.3,2591.6,3.2078]
[1739333872408,3.2078,2592.0,2591.6,3.2078]
[1739333872605,1.754,2591.9,2591.6,3.2078]
[1739333873906,3.21358458,2592.0,2591.6,3.2078]
[1739333874708,3.21358458,2592.0,2591.5,1.1174]
[1739333875002,3.21358458,2592.0,2591.5,0.556]
[1739333875407,3.21358458,2592.0,2591.1,0.5734]
[1739333875408,7.29914478,2591.7,2591.1,0.5734]
[1739333875601,3.2078,2591.4,2590.8,3.2078]
[1739333875799,4.9618,2591.4,2590.8,3.2078]
[1739333876003,1.754,2591.4,2591.1,3.2078]
[1739333876202,3.21358458,2592.0,2591.3,4.09134478]
[1739333876399,1.754,2591.9,2591.4,3.2078]
[1739333877812,1.754,2591.9,2591.7,3.2078]
[1739333878005,1.754,2591.9,2591.8,0.5524]
[1739333878713,1.754,2591.9,2591.7,3.2078]
[1739333879514,1.754,2591.9,2591.3,0.5524]
[1739333880618,3.21358458,2592.0,2591.3,0.5524]
[1739333881112,3.21358458,2592.0,2591.2,4.3632]
[1739333881113,3.2078,2591.7,2591.2,3.7798]
[1739333881310,7.29914478,2591.7,2591.2,3.7798]
[1739333881518,0.611,2591.6,2591.2,3.2078]
[1739333881714,3.2078,2591.7,2591.0,4.09134478]
[1739333881910,3.2078,2591.7,2591.2,3.2078]
[1739333882115,3.2078,2591.7,2591.3,4.09134478]
[1739333882319,3.2078,2591.7,2591.4,0.5646]
[1739333882618,3.2078,2591.7,2591.5,0.5985]
[1739333882811,0.00578458,2592.0,2591.5,1.1942]
[1739333883118,0.00578458,2592.0,2591.6,4.09134478]
[1739333883514,0.00578458,2592.0,2591.5,4.402]
[1739333884015,4.09712936,2592.0,2591.5,3.2078]
[1739333884214,4.09134478,2591.7,2591.5,0.00507893]
[1739333884420,1.754,2591.6,2591.5,0.00507893]
[1739333884614,2.3172,2591.6,2591.5,0.00507893]
[1739333884919,8.38290682,2591.6,2590.6,3.2078]
[1739333885118,7.29914478,2591.3,2590.6,3.2078]
[1739333885418,7.29914478,2591.3,2590.3,4.402]
[1739333885419,3.7686,2591.2,2590.3,4.402]
[1739333885823,3.7686,2591.2,2590.3,45.202]
[1739333886214,3.7686,2591.2,2590.3,4.402]
[1739333886215,3.2078,2590.9,2590.3,4.402]
[1739333886718,3.2078,2590.9,2590.3,41.9942]
[1739333887221,3.2078,2590.9,2590.3,1.1942]
[1739333887413,6.2928,2590.9,2590.3,0.5985]
[1739333888721,6.2928,2590.9,2590.0,0.575]
[1739333888916,3.2078,2590.6,2590.0,0.575]
[1739333889318,3.21358458,2590.6,2590.0,0.575]
[1739333890019,4.96858458,2590.6,2590.0,0.575]
[1739333890420,0.00578458,2590.6,2590.3,3.2078]
[1739333890814,0.00578458,2590.6,2590.4,0.5582]
[1739333891513,0.00578458,2590.6,2590.4,4.64954478]
[1739333892216,1.755,2591.1,2590.5,0.48829979]
[1739333892419,1.755,2591.1,2590.7,3.2078]
[1739333893517,1.755,2591.1,2590.7,3.7773]
[1739333894321,1.755,2591.1,2590.8,0.48944311]
[1739333894624,1.755,2591.1,2590.7,3.7773]
[1739333894825,1.755,2591.1,2590.8,0.48944312]
[1739333895020,1.755,2591.1,2590.7,3.7773]
[1739333895223,1.755,2591.1,2590.8,0.48944226]
[1739333895521,1.755,2591.1,2590.9,0.48944226]
[1739333895723,1.755,2591.1,2590.7,3.7773]
[1739333895924,1.755,2591.1,2590.8,0.4899427]
[1739333896123,1.755,2591.1,2590.9,0.4899427]
[1739333896312,4.9628,2591.1,2590.7,3.2078]
[1739333896513,4.3275429,2591.0,2590.7,3.2078]
[1739333896719,4.3275429,2591.0,2590.6,0.00578458]
[1739333896918,10.7235429,2591.0,2590.6,0.00578458]
[1739333897124,4.3275429,2591.0,2590.6,0.00578458]
[1739333897525,3.2078,2590.8,2590.6,0.00578458]
[1739333898119,3.7912429,2590.7,2589.7,6.4054429]
[1739333898326,3.7912429,2590.7,2589.8,0.49074899]
[1739333898327,3.2078,2590.5,2589.8,0.49074899]
[1739333898521,1.755,2590.4,2589.9,0.49074899]
[1739333898719,2.3609,2590.4,2590.0,0.49074899]
[1739333898925,2.3609,2590.4,2590.1,0.49074899]
[1739333899228,1.755,2590.7,2590.0,6.4054429]
[1739333899428,1.755,2590.7,2590.1,1.04459354]
[1739333899726,1.755,2590.7,2590.2,0.48269354]
[1739333899923,1.755,2590.7,2590.1,1.712]
[1739333900119,3.8137,2590.9,2590.3,3.2078]
[1739333900318,5.5687,2590.9,2590.4,0.48267225]
[1739333900518,5.5687,2590.9,2590.3,3.2078]
[1739333900722,5.5687,2590.9,2590.4,0.48278197]
[1739333900925,5.5687,2590.9,2590.3,3.2078]
[1739333901124,5.5687,2590.9,2590.4,0.48278157]
[1739333901427,5.5687,2590.9,2590.1,1.712]
[1739333901628,0.5967,2590.8,2590.2,0.48287259]
[1739333901828,3.2078,2590.6,2590.0,3.2078]
[1739333902726,4.0952035,2590.5,2589.7,3.2078]
[1739333903029,3.2078,2590.3,2589.7,3.2078]
[1739333903219,2.3517,2590.2,2589.7,3.2078]
[1739333903418,2.9339,2590.2,2589.7,3.2078]
[1739333904823,2.3372,2590.2,2589.7,3.2078]
[1739333905624,0.5822,2590.2,2589.7,3.2078]
[1739333905923,2.3372,2590.2,2589.7,3.2078]
[1739333906128,5.4222,2590.2,2589.7,3.2078]
[1739333906326,6.4324035,2590.2,2589.3,44.5702]
[1739333906625,3.2078,2589.7,2589.0,3.2078]
[1739333906822,3.2078,2589.4,2589.0,3.2078]
[1739333907018,4.9628,2589.4,2589.0,3.2078]
[1739333908524,4.0952035,2589.3,2588.5,3.2078]
[1739333908830,3.2078,2589.1,2588.4,0.6094]
[1739333909025,3.2078,2589.1,2588.5,3.2078]
[1739333909226,0.5743,2589.0,2588.5,3.2078]
[1739333909429,4.9628,2589.4,2588.5,3.2078]
[1739333909624,4.9628,2589.4,2588.6,0.5725]
[1739333909824,4.9628,2589.4,2588.7,0.5568]
[1739333910235,4.9628,2589.4,2588.8,3.2078]
[1739333910528,4.9628,2589.4,2588.7,0.5568]
[1739333910730,4.0952035,2589.3,2588.5,3.2078]
[1739333911034,3.2078,2589.1,2588.5,3.2078]
[1739333911231,3.2078,2589.1,2588.1,3.2078]
[1739333911232,4.7078035,2589.0,2588.1,3.2078]
[1739333911536,3.2078,2588.5,2587.8,3.2078]
[1739333911735,0.6126,2588.4,2587.9,40.8]
[1739333912136,4.7078035,2588.4,2587.8,3.2078]
[1739333912334,0.578,2588.3,2587.8,3.2078]
[1739333912536,3.2078,2588.0,2586.9,3.2078]
[1739333912734,1.755,2587.9,2586.9,3.2078]
[1739333913031,0.00579587,2587.7,2586.9,3.2078]
[1739333913238,3.21359587,2587.7,2586.9,3.2078]
[1739333914233,0.00579587,2587.7,2587.2,3.2078]
[1739333916150,0.00579587,2587.7,2587.5,3.2078]
[1739333916537,5.5764,2588.4,2587.6,1.7563]
[1739333916742,4.9638,2588.4,2587.9,7.3030035]
[1739333917246,1.756,2588.8,2587.9,7.3030035]
[1739333917443,1.756,2588.8,2588.3,3.2078]
[1739333917641,0.00579587,2588.6,2588.3,3.2078]
[1739333918144,0.00579587,2588.6,2588.4,41.407]
[1739333918744,0.00579587,2588.6,2588.4,3.8148]
[1739333919146,0.00579587,2588.6,2588.4,3.2078]
[1739333920447,0.00579587,2588.6,2588.5,4.0952035]
[1739333920644,1.756,2589.3,2588.5,4.6633035]
[1739333920945,1.756,2589.3,2589.0,3.2078]
[1739333921944,0.00579587,2589.4,2589.0,3.2078]
[1739333922248,0.00579587,2589.4,2589.3,3.2078]
[1739333922749,1.756,2590.2,2589.3,9.2078]
[1739333922956,1.756,2590.2,2589.8,3.2078]
[1739333923850,3.7745,2590.5,2589.8,3.2078]
[1739333923851,0.00579587,2590.3,2589.8,3.2078]
[1739333924749,3.2078,2590.2,2589.7,0.00579587]
[1739333927749,7.3030035,2590.2,2589.7,0.00579587]
[1739333927950,7.3030035,2589.9,2589.7,0.00579587]
[1739333928150,2.915,2589.8,2589.1,3.2078]
[1739333928355,3.4782,2589.8,2589.1,3.2078]
[1739333928954,1.159,2589.8,2589.1,7.3030035]
[1739333929462,1.159,2589.8,2589.2,0.00579587]
[1739333931051,1.7667,2589.8,2589.2,0.00579587]
[1739333931448,0.00579587,2590.3,2589.6,3.2078]
[1739333932059,0.00579587,2590.3,2589.7,0.6089]
[1739333933656,0.00579587,2590.3,2589.9,3.2078]
[1739333938461,0.00579587,2590.3,2590.2,3.2078]
[1739333940263,0.00579587,2590.3,2589.9,3.2078]
[1739333941862,0.00579587,2590.3,2590.2,3.2078]
[1739333942662,0.00579587,2590.3,2589.9,3.2078]
[1739333943572,0.00579587,2590.3,2589.7,0.6089]
[1739333943771,7.3030035,2590.2,2589.2,3.21359587]
[1739333944067,8.0754335,2589.9,2589.2,3.21359587]
[1739333944268,1.755,2589.8,2589.2,3.21359587]
[1739333944467,0.6135,2589.7,2589.2,3.21359587]
[1739333949069,3.5925,2589.7,2589.2,3.21359587]
[1739333949669,3.5925,2589.7,2589.3,0.41409624]
[1739333949972,6.8003,2589.7,2589.2,0.00579587]
[1739333950767,1.755,2589.6,2589.2,0.00579587]
[1739333951274,3.2078,2589.4,2589.2,0.00579587]
[1739333952072,4.8678035,2589.3,2589.2,0.00579587]
[1739333952265,0.77272,2589.0,2588.5,0.5745]
[1739333952467,5.73552,2589.0,2588.5,0.5745]
[1739333952665,3.2078,2588.7,2588.4,0.5841]
[1739333952864,1.1265,2588.9,2588.4,0.5841]
[1739333953067,1.1265,2588.9,2588.1,3.2078]
[1739333953271,1.1265,2588.9,2588.2,0.41424647]
[1739333953471,0.00579587,2588.8,2588.2,0.00579587]
[1739333954271,0.00579587,2588.8,2588.2,0.56359587]
[1739333954468,3.2078,2588.7,2588.2,0.56359587]
[1739333955671,3.2078,2588.7,2588.2,0.00579587]
[1739333955867,7.3030035,2588.7,2588.2,0.00579587]
[1739333956677,3.2078,2588.3,2588.2,0.00579587]
[1739333956863,4.9628,2588.3,2588.2,0.00579587]
[1739333957268,6.1646,2588.3,2588.2,0.00579587]
[1739333958771,6.1646,2588.3,2587.6,0.5696]
[1739333958973,3.2078,2587.9,2587.6,0.5696]
[1739333959471,3.2078,2587.9,2587.4,0.5533]
[1739333961470,3.20484544,2587.9,2587.4,0.5533]
[1739333961675,1.756,2588.2,2587.6,3.2078]
[1739333961875,1.756,2588.4,2587.9,3.2078]
[1739333962075,1.1505,2588.6,2588.2,3.2078]
[1739333962270,1.756,2588.7,2588.3,3.2078]
[1739333962678,1.756,2588.7,2588.4,1.1666]
[1739333962976,1.756,2588.7,2588.0,3.7745]
[1739333963275,3.2078,2588.6,2588.0,3.7745]
[1739333963669,0.5948,2588.5,2588.0,0.5667]
[1739333963974,3.2078,2588.3,2587.8,1.1666]
[1739333964479,3.2078,2588.3,2587.7,3.2078]
[1739333964677,3.2078,2588.3,2587.3,7.8697035]